fUST/lending_fUST_20250614
["ID","MTS","AMOUNT","RATE_DAILY","PERIOD"]
[365711295,1749841838462,-460.0,0.00022465,4]
[365711296,1749841838473,-460.0,0.00022465,4]
[365711297,1749841838484,-1226.29,0.00022465,4]
[365711298,1749841838494,-1726.25,0.00022465,4]
[365711299,1749841838504,-668.68,0.00022465,4]
[365711300,1749841838514,-460.0,0.00022465,4]
[365711301,1749841838524,-460.0,0.00022465,4]
[365711302,1749841838533,-460.0,0.00022465,4]
[365711303,1749841838543,-500.0,0.00022466,2]
[365711304,1749841838552,-500.0,0.00022466,2]
[365711305,1749841838562,-500.0,0.00022466,2]
[365711306,1749841838572,-500.0,0.00022466,2]
[365711307,1749841838582,-500.0,0.00022466,2]
[365711308,1749841838592,-500.0,0.00022466,2]
[365711309,1749841838603,-500.0,0.00022466,2]
[365711310,1749841838613,-500.0,0.00022466,2]
[365711311,1749841838623,-500.0,0.00022466,2]
[365711312,1749841838632,-500.0,0.00022466,2]
[365711313,1749841838642,-500.0,0.00022466,2]
[365711314,1749841838656,-500.0,0.00022466,2]
[365711315,1749841838665,-500.0,0.00022466,2]
[365711316,1749841838674,-248.78269547,0.00022466,2]
[365711317,1749841838684,-500.0,0.00022466,2]
[365711318,1749841838694,-500.0,0.00022466,2]
[365711319,1749841838704,-500.0,0.00022466,2]
[365711320,1749841838714,-500.0,0.00022466,2]
[365711321,1749841838723,-211.69068759,0.00022473,2]
[365711322,1749841838733,-500.0,0.00022475,2]
[365711323,1749841838743,-160.0,0.00022495,2]
[365711324,1749841838752,-229.78555783,0.00022495,2]
[365711325,1749841838762,-835.28007164,0.00022495,2]
[365711326,1749841838771,-424.32678023,0.00022495,2]
[365711327,1749841838780,-160.0,0.00022496,2]
[365711328,1749841838790,-440.0,0.00022499,4]
[365711329,1749841838800,-440.0,0.00022499,4]
[365711330,1749841838810,-430.0,0.00022499,4]
[365711331,1749841838820,-460.0,0.00022499,4]
[365711332,1749841838831,-440.0,0.00022499,4]
[365711333,1749841838840,-440.0,0.00022499,4]
[365711334,1749841838851,-346.62810943,0.00022499,4]
[365711335,1749841838860,-460.0,0.00022499,2]
[365711336,1749841838871,-460.0,0.00022499,4]
[365711337,1749841838880,-430.0,0.00022499,4]
[365711338,1749841838889,-460.0,0.00022499,4]
[365711339,1749841838901,-430.0,0.00022499,4]
[365711340,1749841838911,-301.2419093,0.00022499,2]
[365711341,1749841838921,-500.0,0.00022499,2]
[365711342,1749841838931,-500.0,0.00022499,2]
[365711343,1749841838940,-500.0,0.00022499,2]
[365711344,1749841838950,-500.0,0.00022499,2]
[365711345,1749841838960,-651.25390865,0.00022499,2]
[365711346,1749841838970,-500.0,0.000225,2]
[365711347,1749841838979,-142878.95,0.000225,7]
[365711348,1749841838989,-2201.47334902,0.00022521,7]
[365711349,1749841839000,-500.0,0.00022558,2]
[365711350,1749841839010,-500.0,0.00022558,2]
[365711351,1749841839019,-2201.47334902,0.00022624,7]
[365711352,1749841839029,-257.58699292,0.00022663,2]
[365711353,1749841839039,-500.0,0.00022672,2]
[365711354,1749841839050,-460.0,0.00022673,4]
[365711355,1749841839061,-2201.47334902,0.00022728,7]
[365711356,1749841839072,-842.84,0.00022739,4]
[365711357,1749841839081,-460.0,0.00022739,4]
[365711358,1749841839091,-755.17,0.00022739,4]
[365711359,1749841839101,-460.0,0.00022739,4]
[365711360,1749841839111,-460.0,0.00022739,4]
[365711361,1749841839123,-468.63,0.00022739,4]
[365711362,1749841839135,-460.0,0.00022739,4]
[365711363,1749841839145,-460.0,0.00022739,4]
[365711364,1749841839156,-1226.29,0.00022739,4]
[365711365,1749841839165,-1726.25,0.00022739,4]
[365711366,1749841839175,-668.68,0.00022739,4]
[365711367,1749841839184,-460.0,0.00022739,4]
[365711368,1749841839194,-460.0,0.00022739,4]
[365711369,1749841839203,-460.0,0.00022739,4]
[365711370,1749841839213,-460.0,0.00022773,4]
[365711371,1749841839223,-460.0,0.00022773,2]
[365711372,1749841839234,-460.0,0.00022773,4]
[365711373,1749841839244,-460.0,0.00022773,4]
[365711374,1749841839253,-2112.78,0.000228,7]
[365711375,1749841839263,-604.1233785,0.00022827,2]
[365711376,1749841839273,-2201.47334902,0.00022831,8]
[365711377,1749841839284,-5000.0,0.00022844,2]
[365711378,1749841839294,-207.4,0.00022844,2]
[365711379,1749841839303,-500.0,0.00022844,2]
[365711380,1749841839313,-500.0,0.00022844,2]
[365711381,1749841839323,-500.0,0.00022844,2]
[365711382,1749841839332,-500.0,0.00022844,2]
[365711383,1749841839341,-500.0,0.00022844,2]
[365711384,1749841839351,-500.0,0.00022844,2]
[365711385,1749841839360,-500.0,0.00022844,2]
[365711386,1749841839370,-500.0,0.00022844,2]
[365711387,1749841839383,-500.0,0.00022844,2]
[365711388,1749841839392,-500.0,0.00022844,2]
[365711389,1749841839403,-500.0,0.00022844,2]
[365711390,1749841839413,-500.0,0.00022844,2]
[365711391,1749841839422,-500.0,0.00022844,2]
[365711392,1749841839431,-500.0,0.00022844,2]
[365711393,1749841839443,-500.0,0.00022844,2]
[365711394,1749841839453,-2000.0,0.00022882,2]
[365711395,1749841839463,-2201.47334902,0.00022934,8]
[365711396,1749841839472,-420.0,0.00022942,2]
[365711397,1749841839482,-420.0,0.00022943,2]
[365711398,1749841839491,-500.0,0.00022946,3]
[365711399,1749841839501,-460.0,0.00022947,4]
[365711400,1749841839510,-1081.8067129,0.00022985,2]
[365711401,1749841839520,-504.97186885,0.00022985,2]
[365711402,1749841839530,-189.0,0.00023,7]
[365711403,1749841839539,-257.58699292,0.00023009,2]
[365711404,1749841839548,-160.0,0.00023012,2]
[365711405,1749841839558,-842.84,0.00023013,4]
[365711406,1749841839568,-460.0,0.00023013,4]
[365711407,1749841839578,-755.17,0.00023013,4]
[365711408,1749841839588,-460.0,0.00023013,4]
[365711409,1749841839597,-551.18,0.00023013,4]
[365711410,1749841839607,-460.0,0.00023013,4]
[365711411,1749841839616,-460.0,0.00023013,4]
[365711412,1749841839626,-1226.29,0.00023013,4]
[365711413,1749841839636,-1726.25,0.00023013,4]
[365711414,1749841839645,-668.68,0.00023013,4]
[365711415,1749841839656,-460.0,0.00023013,4]
[365711416,1749841839665,-460.0,0.00023013,4]
[365711417,1749841839675,-460.0,0.00023013,4]
[365711418,1749841839684,-1000.0,0.00023023,2]
[365711419,1749841839694,-2201.47334902,0.00023038,8]
[365711420,1749841839704,-339.51541226,0.00023047,4]
[365711421,1749841839714,-460.0,0.00023047,2]
[365711422,1749841839723,-460.0,0.00023047,4]
[365711423,1749841839734,-460.0,0.00023047,4]
[365711424,1749841839743,-1001.89008847,0.00023048,2]
[365711425,1749841839752,-1046.32981503,0.00023106,2]
[365711426,1749841839763,-500.0,0.00023106,2]
[365711427,1749841839772,-2201.47334902,0.00023141,8]
[365711428,1749841839783,-342.0,0.0002319,2]
[365711431,1749841839913,-460.0,0.00023221,4]
[365711432,1749841839923,-2201.47334902,0.00023245,8]
[365711434,1749841839932,-842.84,0.00023287,4]
[365711436,1749841839941,-460.0,0.00023287,4]
[365711438,1749841839951,-755.17,0.00023287,4]
[365711440,1749841839960,-460.0,0.00023287,4]
[365711443,1749841839970,-460.0,0.00023287,4]
[365711445,1749841839980,-460.0,0.00023287,4]
[365711447,1749841839989,-1226.29,0.00023287,4]
[365711449,1749841839999,-1726.25,0.00023287,4]
[365711451,1749841840009,-668.68,0.00023287,4]
[365711453,1749841840018,-460.0,0.00023287,4]
[365711455,1749841840027,-460.0,0.00023287,4]
[365711456,1749841840036,-460.0,0.00023287,4]
[365711457,1749841840046,-3000.0,0.000233,2]
[365711458,1749841840061,-3000.0,0.0002331,2]
[365711459,1749841840071,-3000.0,0.0002332,2]
[365711460,1749841840080,-460.0,0.00023321,2]
[365711461,1749841840089,-490.60026302,0.00023321,4]
[365711462,1749841840098,-460.0,0.00023321,4]
[365711463,1749841840108,-3000.0,0.0002333,2]
[365711464,1749841840118,-3000.0,0.0002334,2]
[365711466,1749841840129,-2201.47334902,0.00023348,9]
[365711468,1749841840138,-3000.0,0.0002335,2]
[365711470,1749841840149,-257.58699292,0.00023354,2]
[365711471,1749841840158,-3000.0,0.0002336,2]
[365711472,1749841840168,-3000.0,0.0002337,2]
[365711473,1749841840177,-240.58970932,0.00023373,2]
[365711474,1749841840186,-500.0,0.00023373,2]
[365711475,1749841840196,-600.0,0.00023373,2]
[365711476,1749841840205,-220.41741011,0.00023373,2]
[365711477,1749841840215,-503.41766689,0.00023373,2]
[365711478,1749841840224,-500.0,0.00023373,2]
[365711479,1749841840234,-500.0,0.00023373,2]
[365711480,1749841840243,-500.0,0.00023373,2]
[365711481,1749841840253,-500.0,0.00023373,2]
[365711482,1749841840262,-500.0,0.00023373,2]
[365711483,1749841840271,-3000.0,0.0002338,2]
[365711484,1749841840281,-3000.0,0.0002339,2]
[365711485,1749841840291,-5000.0,0.00023392,2]
[365711486,1749841840300,-3000.0,0.000234,2]
[365711487,1749841840309,-112324.16,0.000234,2]
[365711488,1749841840319,-3000.0,0.0002341,2]
[365711489,1749841840329,-3000.0,0.0002342,2]
[365711490,1749841840338,-3000.0,0.0002343,2]
[365711491,1749841840347,-1000.0,0.0002343,2]
[365711492,1749841840356,-503.48503408,0.00023433,2]
[365711493,1749841840366,-500.0,0.00023433,2]
[365711494,1749841840375,-500.0,0.00023433,2]
[365711495,1749841840384,-3000.0,0.0002344,2]
[365711496,1749841840394,-3000.0,0.0002345,2]
[365711497,1749841840406,-2201.47334902,0.00023452,9]
[365711498,1749841840416,-3000.0,0.0002346,2]
[365711499,1749841840425,-3000.0,0.0002347,2]
[365711501,1749841840435,-500.0,0.00023473,2]
[365711502,1749841840444,-500.0,0.00023473,2]
[365711503,1749841840454,-500.91748917,0.00023473,2]
[365711504,1749841840463,-501.98508171,0.00023473,2]
[365711505,1749841840473,-500.0,0.00023473,2]
[365711507,1749841840483,-500.0,0.00023473,2]
[365711509,1749841840492,-500.0,0.00023473,2]
[365711511,1749841840501,-500.0,0.00023473,2]
[365711514,1749841840511,-500.0,0.00023473,2]
[365711516,1749841840521,-501.03912607,0.00023473,2]
[365711518,1749841840531,-500.0,0.00023473,2]
[365711520,1749841840540,-500.0,0.00023473,2]
[365711522,1749841840550,-500.0,0.00023473,2]
[365711524,1749841840559,-500.0,0.00023473,2]
[365711526,1749841840568,-500.0,0.00023473,2]
[365711528,1749841840577,-500.42355388,0.00023473,2]
[365711530,1749841840586,-500.0,0.00023473,2]
[365711532,1749841840595,-3000.0,0.0002348,2]
[365711534,1749841840604,-3000.0,0.0002349,2]
[365711536,1749841840613,-500.0,0.00023494,4]
[365711537,1749841840623,-3000.0,0.000235,2]
[365711539,1749841840632,-142878.95,0.000235,7]
[365711542,1749841840642,-3000.0,0.0002351,2]
[365711544,1749841840652,-3000.0,0.0002352,2]
[365711546,1749841840664,-3000.0,0.0002353,2]
[365711548,1749841840674,-3000.0,0.0002354,2]
[365711550,1749841840683,-3000.0,0.0002355,2]
[365711552,1749841840692,-317.76,0.00023551,3]
[365711554,1749841840701,-2201.47334902,0.00023555,9]
[365711556,1749841840710,-3000.0,0.0002356,2]
[365711558,1749841840719,-200.0,0.00023561,4]
[365711560,1749841840728,-200.0,0.00023561,4]
[365711562,1749841840738,-200.0,0.00023561,4]
[365711564,1749841840747,-200.0,0.00023561,4]
[365711566,1749841840756,-200.0,0.00023561,4]
[365711568,1749841840765,-200.0,0.00023561,4]
[365711570,1749841840774,-200.0,0.00023561,4]
[365711572,1749841840783,-200.0,0.00023561,4]
[365711574,1749841840792,-842.84,0.00023561,4]
[365711576,1749841840802,-460.0,0.00023561,4]
[365711578,1749841840811,-755.17,0.00023561,4]
[365711580,1749841840821,-491.12,0.00023561,4]
[365711582,1749841840831,-460.0,0.00023561,4]
[365711584,1749841840839,-460.0,0.00023561,4]
[365711586,1749841840848,-1226.29,0.00023561,4]
[365711588,1749841840857,-1726.25,0.00023561,4]
[365711590,1749841840866,-668.68,0.00023561,4]
[365711591,1749841840876,-460.0,0.00023561,4]
[365711594,1749841840885,-460.0,0.00023561,4]
[365711595,1749841840895,-460.0,0.00023561,4]
[365711598,1749841840907,-3000.0,0.0002357,2]
[365711600,1749841840916,-3000.0,0.0002358,2]
[365711601,1749841840924,-1392.0,0.00023587,2]
[365711603,1749841840934,-4252.741105,0.0002359,2]
[365711605,1749841840943,-460.0,0.00023595,2]
[365711607,1749841840952,-4821.77,0.000236,7]
[365711609,1749841840961,-166.50369971,0.00023616,2]
[365711611,1749841840970,-166.50369972,0.00023616,2]
[365711613,1749841840979,-6109.66331823,0.00023629,2]
[365711615,1749841840988,-2201.47334902,0.00023659,9]
[365711617,1749841840998,-257.58699292,0.000237,2]
[365711619,1749841841007,-150.0,0.00023743,2]
[365711621,1749841841016,-150.0,0.00023743,2]
[365711623,1749841841026,-150.0,0.00023743,2]
[365711625,1749841841034,-176.325,0.00023743,2]
[365711627,1749841841043,-964.0,0.00023743,2]
[365711629,1749841841056,-653.0,0.00023743,2]
[365711631,1749841841065,-2160.0,0.00023743,2]
[365711633,1749841841075,-2201.47334902,0.00023762,9]
[365711635,1749841841083,-899.16,0.000238,2]
[365711637,1749841841093,-842.84,0.00023835,4]
[365711639,1749841841102,-460.0,0.00023835,4]
[365711641,1749841841111,-755.17,0.00023835,4]
[365711643,1749841841121,-460.0,0.00023835,4]
[365711645,1749841841131,-460.0,0.00023835,4]
[365711647,1749841841140,-1226.29,0.00023835,4]
[365711649,1749841841151,-1726.25,0.00023835,4]
[365711651,1749841841160,-668.68,0.00023835,4]
[365711653,1749841841169,-460.0,0.00023835,4]
[365711655,1749841841178,-460.0,0.00023835,4]
[365711657,1749841841188,-460.0,0.00023835,4]
[365711659,1749841841196,-2201.47334902,0.00023866,10]
[365711661,1749841841207,-460.0,0.00023869,2]
[365711663,1749841841217,-1422.28,0.00023892,2]
[365711665,1749841841226,-2112.78,0.000239,7]
[365711667,1749841841235,-1000.0,0.00023921,2]
[365711669,1749841841244,-1200.0,0.00023921,2]
[365711671,1749841841253,-1000.0,0.00023921,2]
[365711673,1749841841262,-1000.0,0.00023921,2]
[365711675,1749841841271,-1001.04561365,0.00023921,2]
[365711677,1749841841281,-600.0,0.00023922,2]
[365711679,1749841841290,-5000.0,0.0002394,2]
[365711681,1749841841299,-2201.47334902,0.00023969,10]
[365711683,1749841841308,-150.0,0.00023973,2]
[365711685,1749841841319,-150.0,0.00023973,2]
[365711687,1749841841328,-1000.0,0.00023981,2]
[365711689,1749841841338,-1000.0,0.00023981,2]
[365711691,1749841841348,-143676.71531988,0.00023998,2]
[365711693,1749841841357,-30013.0,0.00024,2]
[365711695,1749841841367,-400.0,0.00024,2]
[365711697,1749841841377,-160.0,0.00024,7]
[365711699,1749841841387,-150.0,0.00024,30]
[365711701,1749841841398,-229.78555783,0.00024,7]
[365711703,1749841841409,-835.28007164,0.00024,7]
[365711705,1749841841419,-424.32678023,0.00024,7]
[365711707,1749841841429,-1000.0,0.00024021,2]
[365711709,1749841841439,-504.28907664,0.00024021,2]
[365711711,1749841841448,-1000.0,0.00024021,2]
[365711713,1749841841457,-1000.0,0.00024021,2]
[365711715,1749841841467,-2201.47334902,0.00024072,10]
[365711717,1749841841476,-842.84,0.00024109,4]
[365711719,1749841841486,-460.0,0.00024109,4]
[365711721,1749841841495,-755.17,0.00024109,4]
[365711724,1749841841505,-460.0,0.00024109,4]
[365711726,1749841841515,-460.0,0.00024109,4]
[365711728,1749841841524,-1226.29,0.00024109,4]
[365711730,1749841841534,-1726.25,0.00024109,4]
[365711732,1749841841543,-668.68,0.00024109,4]
[365711734,1749841841552,-460.0,0.00024109,4]
[365711736,1749841841562,-460.0,0.00024109,4]
[365711738,1749841841571,-460.0,0.00024109,4]
[365711740,1749841841581,-460.0,0.00024143,2]
[365711742,1749841841590,-2201.47334902,0.00024176,10]
[365711744,1749841841599,-173.9379647,0.000242,4]
[365711746,1749841841609,-173.9379647,0.000242,4]
[365711748,1749841841633,-173.9379647,0.000242,4]
[365711750,1749841841646,-173.93,0.000242,4]
[365711752,1749841841659,-162.34210038,0.000242,4]
[365711754,1749841841668,-162.34210038,0.000242,4]
[365711756,1749841841677,-162.34210038,0.000242,4]
[365711758,1749841841687,-162.34210038,0.000242,4]
[365711759,1749841841696,-162.34210038,0.000242,4]
[365711761,1749841841705,-162.34210038,0.000242,4]
[365711763,1749841841714,-162.34210038,0.000242,4]
[365711765,1749841841723,-162.34210038,0.000242,4]
[365711767,1749841841733,-162.34210038,0.00024206,4]
[365711769,1749841841742,-2200.0,0.00024207,2]
[365711771,1749841841751,-215.0738,0.00024213,2]
[365711773,1749841841760,-2201.47334902,0.00024279,10]
[365711775,1749841841769,-269.55271232,0.00024295,2]
[365711777,1749841841779,-598.25,0.000243,31]
[365711779,1749841841788,-598.25,0.000243,31]
[365711781,1749841841797,-598.25,0.000243,31]
[365711783,1749841841806,-598.25,0.000243,31]
[365711785,1749841841815,-598.25,0.000243,31]
[365711787,1749841841825,-598.25,0.000243,31]
[365711789,1749841841834,-598.25,0.000243,31]
[365711791,1749841841843,-598.25,0.000243,31]
[365711793,1749841841853,-598.25,0.000243,31]
[365711795,1749841841862,-598.25,0.000243,31]
[365711797,1749841841871,-598.25,0.000243,31]
[365711799,1749841841880,-598.25,0.000243,31]
[365711801,1749841841890,-598.25,0.000243,31]
[365711803,1749841841901,-598.25,0.000243,31]
[365711805,1749841841910,-598.25,0.000243,31]
[365711807,1749841841919,-598.25,0.000243,31]
[365711809,1749841841928,-160.0,0.000243,10]
[365711811,1749841841938,-835.28007164,0.000243,10]
[365711813,1749841841947,-424.32678023,0.000243,10]
[365711815,1749841841956,-112324.16,0.000243,2]
[365711817,1749841841965,-315.3059208,0.000243,10]
[365711819,1749841841975,-160.0,0.00024382,2]
[365711821,1749841841984,-2201.47334902,0.00024383,11]
[365711832,1749841842067,-842.84,0.00024383,4]
[365711834,1749841842084,-200.95435375,0.00024383,4]
[365711836,1749841842096,-755.17,0.00024383,4]
[365711838,1749841842105,-240.53,0.00024383,4]
[365711840,1749841842114,-460.0,0.00024383,4]
[365711842,1749841842123,-1226.29,0.00024383,4]
[365711844,1749841842133,-1726.25,0.00024383,4]
[365711846,1749841842142,-668.68,0.00024383,4]
[365711848,1749841842151,-460.0,0.00024383,4]
[365711850,1749841842161,-161.47,0.00024383,4]
[365711852,1749841842170,-460.0,0.00024383,4]
[365711854,1749841842178,-151.0,0.000244,10]
[365711856,1749841842188,-460.0,0.00024417,2]
[365711858,1749841842197,-1316.136976,0.0002442,3]
[365711860,1749841842208,-15157.93772815,0.00024423,7]
[365711862,1749841842217,-1800.0,0.00024468,2]
[365711864,1749841842227,-1500.0,0.00024468,2]
[365711866,1749841842236,-1500.0,0.00024468,2]
[365711868,1749841842247,-1500.0,0.00024468,2]
[365711870,1749841842256,-2201.47334902,0.00024486,11]
[365711872,1749841842265,-2968.1432389,0.00024488,2]
[365712061,1749841846095,-460.0,0.00021095,4]
[365712062,1749841846104,-494.0,0.00021917,4]
[365712063,1749841846114,-160.0,0.00022495,2]
[365712064,1749841846124,-2031.8567611,0.00024488,2]
[365712065,1749841846136,-4821.77,0.000245,7]
[365712066,1749841846145,-9886.3480608,0.000245,7]
[365712318,1749842591823,-226.84863573,0.00019348,6]
[365712319,1749842608355,-1530.31270642,0.00019348,6]
[365712324,1749842830213,-359.73020325,0.00019544,2]
[365712325,1749842830234,-195.0856988,0.00020142,2]
[365712326,1749842830257,-1719.10590817,0.0002051,2]
[365712327,1749842833135,-232.83243344,0.0002051,2]
[365712328,1749842833157,-168.4704452,0.00020995,2]
[365712329,1749842833181,-475.57398582,0.00021073,2]
[365712330,1749842885112,-259.51324761,0.00020862,2]
[365712331,1749842915873,-153.95114488,0.00019,20]
[365712332,1749842919127,-204.76240816,0.00018,2]
[365712335,1749842939135,-5350.64162303,0.00018,2]
[365712336,1749842939156,-472.35837697,0.000189,2]
[365712337,1749842948123,-131.76500153,0.000189,2]
[365712338,1749842948143,-248.35290627,0.00019,20]
[365712339,1749842948162,-122.5632922,0.0002,7]
[365712340,1749842958137,-28.0050011,0.0002,7]
[365712341,1749842958159,-840.48675239,0.00020862,2]
[365712342,1749842958179,-24.42601418,0.00021073,2]
[365712343,1749842958200,-300.0,0.00021094,2]
[365712344,1749842958221,-300.0,0.00021094,2]
[365712345,1749842958241,-440.0,0.00021095,4]
[365712346,1749842958262,-440.0,0.00021095,4]
[365712347,1749842958282,-440.0,0.00021095,4]
[365712348,1749842958302,-180.006976,0.00021095,4]
[365712349,1749842958323,-423.24721018,0.00021095,4]
[365712350,1749842958343,-430.0,0.00021095,4]
[365712351,1749842958364,-460.0,0.00021095,4]
[365712352,1749842958385,-440.0,0.00021095,4]
[365712353,1749842958407,-430.14342365,0.00021095,4]
[365712354,1749842958431,-372.95880268,0.00021095,4]
[365712355,1749842958455,-430.0,0.00021095,4]
[365712356,1749842958476,-440.0,0.00021095,4]
[365712357,1749842958498,-400.0,0.00021095,4]
[365712358,1749842958522,-460.0,0.00021095,4]
[365712359,1749842958543,-432.65406903,0.00021095,4]
[365712360,1749842958563,-430.0,0.00021095,4]
[365712361,1749842958584,-260.0,0.00021095,4]
[365712362,1749842958606,-430.0,0.00021095,4]
[365712363,1749842958627,-430.0,0.00021095,4]
[365712364,1749842958647,-430.0,0.00021095,4]
[365712365,1749842958668,-460.0,0.00021095,4]
[365712366,1749842958689,-430.0,0.00021095,4]
[365712367,1749842958710,-460.0,0.00021095,4]
[365712368,1749842958731,-431.45829805,0.00021095,4]
[365712369,1749842958752,-430.0,0.00021095,4]
[365712370,1749842958774,-500.0,0.00021095,4]
[365712371,1749842958797,-442.39562979,0.00021095,4]
[365712372,1749842958818,-430.0,0.00021095,4]
[365712373,1749842958841,-430.0,0.00021095,4]
[365712374,1749842958862,-431.95999894,0.00021095,4]
[365712375,1749842958883,-430.0,0.00021095,4]
[365712376,1749842958904,-430.0,0.00021095,4]
[365712377,1749842958927,-460.0,0.00021095,4]
[365712378,1749842958948,-430.0,0.00021095,4]
[365712379,1749842958970,-460.0,0.00021095,4]
[365712380,1749842958993,-431.68843791,0.00021095,4]
[365712381,1749842959017,-440.0,0.00021095,4]
[365712382,1749842959040,-460.0,0.00021095,4]
[365712383,1749842959060,-460.0,0.00021095,4]
[365712384,1749842959081,-440.8911839,0.00021095,4]
[365712385,1749842959103,-372.63225782,0.00021095,4]
[365712386,1749842959126,-430.0,0.00021095,4]
[365712387,1749842959147,-375.13380697,0.00021095,4]
[365712388,1749842959170,-460.0,0.00021095,4]
[365712389,1749842959192,-460.0,0.00021095,4]
[365712390,1749842959213,-430.0,0.00021095,4]
[365712391,1749842959236,-460.0,0.00021095,4]
[365712392,1749842959258,-431.81872056,0.00021095,4]
[365712393,1749842959279,-430.0,0.00021095,4]
[365712395,1749842959301,-440.55223813,0.00021095,4]
[365712396,1749842959322,-430.0,0.00021095,4]
[365712397,1749842959342,-206.1123662,0.00021095,4]
[365712399,1749842959362,-460.0,0.00021095,4]
[365712400,1749842959382,-530.27702702,0.00021095,4]
[365712401,1749842959401,-171.07755496,0.00021095,4]
[365712403,1749842959425,-430.0,0.00021095,4]
[365712404,1749842959445,-464.62574316,0.00021095,4]
[365712405,1749842959465,-430.0,0.00021095,4]
[365712406,1749842959485,-469.0931,0.00021095,4]
[365712407,1749842959508,-430.0,0.00021095,4]
[365712408,1749842959535,-460.0,0.00021095,4]
[365712409,1749842959556,-460.0,0.00021095,4]
[365712410,1749842959576,-460.17289536,0.00021095,4]
[365712411,1749842959597,-460.0,0.00021095,4]
[365712412,1749842959618,-440.0,0.00021095,4]
[365712413,1749842959640,-430.0,0.00021095,4]
[365712414,1749842959661,-522.44111787,0.00021095,4]
[365712415,1749842959683,-461.92134131,0.00021095,4]
[365712416,1749842959704,-460.0,0.00021095,4]
[365712417,1749842959724,-460.0,0.00021095,4]
[365712418,1749842959744,-460.0,0.00021095,4]
[365712419,1749842959767,-596.17564883,0.00021095,4]
[365712420,1749842959787,-460.0,0.00021095,4]
[365712421,1749842959808,-525.48185441,0.00021095,4]
[365712422,1749842959829,-460.0,0.00021095,4]
[365712423,1749842959850,-430.0,0.00021095,4]
[365712424,1749842959870,-460.0,0.00021095,4]
[365712425,1749842959892,-460.0,0.00021095,4]
[365712426,1749842959912,-440.0,0.00021095,4]
[365712427,1749842959933,-430.0,0.00021095,4]
[365712428,1749842959953,-460.0,0.00021095,4]
[365712429,1749842959974,-420.0,0.00021095,4]
[365712430,1749842959995,-460.0,0.00021095,4]
[365712431,1749842960016,-460.0,0.00021095,4]
[365712432,1749842960036,-460.0,0.00021095,4]
[365712433,1749842960056,-460.0,0.00021095,4]
[365712434,1749842960077,-410.0,0.00021095,4]
[365712435,1749842960097,-440.0,0.00021095,4]
[365712436,1749842960117,-460.0,0.00021095,4]
[365712437,1749842960138,-460.0,0.00021095,2]
[365712438,1749842960278,-460.0,0.00021095,4]
[365712439,1749842960299,-440.0,0.00021095,4]
[365712440,1749842960319,-460.0,0.00021095,4]
[365712441,1749842960339,-460.0,0.00021095,4]
[365712442,1749842960359,-400.0,0.00021095,4]
[365712443,1749842960380,-460.0,0.00021095,4]
[365712444,1749842960400,-440.0,0.00021095,4]
[365712445,1749842960423,-1209.06,0.00021095,4]
[365712446,1749842960443,-1209.06,0.00021095,4]
[365712447,1749842960464,-1209.06,0.00021095,4]
[365712448,1749842960484,-268.75852373,0.00021095,4]